fUST/lending_fUST_20240806
["ID","MTS","AMOUNT","RATE_DAILY","PERIOD"]
[334301537,1722928241062,-153.0,0.00039178,2]
[334301538,1722928241071,-153.0,0.00039178,2]
[334301539,1722928241081,-207.0547247,0.00039178,2]
[334301541,1722928241091,-153.0,0.00039178,2]
[334301542,1722928241101,-207.0547247,0.00039178,2]
[334301543,1722928241111,-153.0,0.00039178,2]
[334301545,1722928241121,-207.0547247,0.00039178,2]
[334301547,1722928241130,-207.0547247,0.00039178,2]
[334301549,1722928241140,-207.0547247,0.00039178,2]
[334301551,1722928241151,-201.8027622,0.00039178,2]
[334301552,1722928241160,-383.95,0.000392,14]
[334301554,1722928241169,-4691.20246458,0.00039239,2]
[334301555,1722928241178,-151.0,0.00039259,15]
[334301557,1722928241187,-151.0,0.00039259,15]
[334301558,1722928241197,-500.0,0.0003929,5]
[334301560,1722928241207,-1095.525794,0.000393,14]
[334301562,1722928241216,-6000.0,0.000396,60]
[334301564,1722928241225,-374.561,0.000397,2]
[334301566,1722928241234,-39961.87397187,0.00039726,21]
[334301567,1722928241244,-3161.5878863,0.00039726,4]
[334301568,1722928241257,-102133.49542043,0.00039726,2]
[334301569,1722928241266,-10000.0,0.00039726,30]
[334301570,1722928241275,-151.0,0.00039726,7]
[334301571,1722928241285,-151.0,0.00039726,7]
[334301572,1722928241295,-151.0,0.00039726,14]
[334301573,1722928241313,-7471.38,0.00039726,60]
[334301574,1722928241324,-7471.38,0.00039726,60]
[334301575,1722928241334,-7471.38,0.00039726,60]
[334301576,1722928241345,-7471.38,0.00039726,60]
[334301577,1722928241356,-7471.38,0.00039726,60]
[334301578,1722928241366,-7471.38,0.00039726,60]
[334301579,1722928241377,-7471.38,0.00039726,60]
[334301580,1722928241388,-7471.38,0.00039726,60]
[334301581,1722928241397,-7471.38,0.00039726,60]
[334301582,1722928241407,-7471.38,0.00039726,60]
[334301583,1722928241416,-7471.38,0.00039726,60]
[334301584,1722928241426,-7471.38,0.00039726,60]
[334301585,1722928241435,-7471.38,0.00039726,60]
[334301586,1722928241445,-7471.38,0.00039726,60]
[334301587,1722928241454,-7471.38,0.00039726,60]
[334301588,1722928241463,-7471.38,0.00039726,60]
[334301589,1722928241472,-7471.38,0.00039726,60]
[334301590,1722928241482,-7471.38,0.00039726,60]
[334301591,1722928241491,-7471.38,0.00039726,60]
[334301592,1722928241500,-7471.38,0.00039726,60]
[334301593,1722928241513,-7471.38,0.00039726,60]
[334301594,1722928241522,-7471.38,0.00039726,60]
[334301595,1722928241531,-7471.38,0.00039726,60]
[334301596,1722928241540,-7471.43516172,0.00039726,60]
[334301597,1722928241550,-596.93711845,0.00039741,31]
[334301598,1722928241560,-3000.0,0.0003975,42]
[334301599,1722928241570,-203.0,0.000398,30]
[334301600,1722928241580,-18139.38105437,0.00039805,60]
[334301601,1722928241589,-3000.0,0.00039853,42]
[334301602,1722928241598,-151.0,0.00039853,14]
[334301603,1722928241608,-151.0,0.00039853,14]
[334301604,1722928241618,-179.228469,0.00039853,14]
[334301605,1722928241627,-151.0,0.00039853,14]
[334301606,1722928241636,-179.228469,0.00039853,14]
[334301607,1722928241645,-274.522126,0.00039853,14]
[334301608,1722928241654,-274.522126,0.00039853,14]
[334301609,1722928241663,-228.524363,0.00039853,14]
[334301610,1722928241672,-228.524363,0.00039853,14]
[334301611,1722928241681,-455.069591,0.00039853,14]
[334301612,1722928241691,-455.069591,0.00039853,14]
[334301613,1722928241700,-1800.0,0.00039923,2]
[334301614,1722928241709,-183.676784,0.0003993,2]
[334301615,1722928241719,-187.374539,0.0003993,2]
[334301616,1722928241729,-3000.0,0.00039956,42]
[334301617,1722928241739,-161.10596261,0.00039995,5]
[334301618,1722928241748,-5000.0,0.0004,40]
[334301619,1722928241764,-260954.78700608,0.0004,2]
[334301620,1722928242178,-55769.02998221,0.0004,2]
[334301663,1722928243911,-277.22173043,0.00019155,2]
[334301664,1722928243921,-511.82534433,0.00019165,2]
[334301665,1722928243930,-153.09388874,0.00019165,2]
[334301666,1722928243940,-1200.0,0.00038904,120]
[334301667,1722928243950,-1200.0,0.00039452,120]
[334301668,1722928243959,-28971.95036437,0.0004,2]
[334301669,1722928243971,-1291.3287609,0.0004,2]
[334301670,1722928243983,-109217.59005014,0.0004,2]
[334301671,1722928243995,-233559.80682531,0.0004,2]
[334301672,1722928244006,-500.0,0.0004,120]
[334301673,1722928244020,-500.0,0.0004,2]
[334301674,1722928244030,-500.0,0.0004,2]
[334301675,1722928244040,-500.0,0.0004,2]
[334301676,1722928244050,-500.0,0.0004,2]
[334301677,1722928244059,-275.82504089,0.0004,4]
[334301678,1722928244069,-2956.0,0.0004,120]
[334301679,1722928244078,-1600.0,0.0004,30]
[334301680,1722928244088,-1020.90775266,0.0004,120]
[334301681,1722928244099,-780.35329159,0.0004,35]
[334301683,1722928244109,-770.83,0.0004,2]
[334301685,1722928244119,-300.0,0.0004,21]
[334301687,1722928244129,-200.0,0.0004,2]
[334301690,1722928244139,-526.0,0.0004,2]
[334301693,1722928244149,-374.561,0.0004,2]
[334301695,1722928244158,-12868.0,0.0004,120]
[334301697,1722928244168,-1200.0,0.0004,120]
[334301699,1722928244178,-3000.0,0.00040059,42]
[334301701,1722928244187,-269.512721,0.00040086,2]
[334301703,1722928244197,-5000.0,0.00040158,60]
[334301705,1722928244207,-3000.0,0.00040162,42]
[334301707,1722928244216,-289.81,0.000402,31]
[334301709,1722928244226,-289.81,0.000402,31]
[334301710,1722928244237,-289.81,0.000402,31]
[334301711,1722928244246,-289.81,0.000402,31]
[334301712,1722928244256,-289.81,0.000402,31]
[334301713,1722928244266,-289.81,0.000402,31]
[334301714,1722928244276,-289.81,0.000402,31]
[334301715,1722928244285,-289.81,0.000402,31]
[334301716,1722928244295,-289.81,0.000402,31]
[334301717,1722928244304,-289.81,0.000402,31]
[334301718,1722928244314,-289.81,0.000402,31]
[334301719,1722928244323,-289.81,0.000402,31]
[334301720,1722928244333,-289.81,0.000402,31]
[334301721,1722928244342,-289.81,0.000402,31]
[334301722,1722928244352,-289.81,0.000402,31]
[334301723,1722928244362,-289.81,0.000402,31]
[334301724,1722928244371,-289.81,0.000402,31]
[334301725,1722928244381,-289.81,0.000402,31]
[334301726,1722928244390,-289.81,0.000402,31]
[334301727,1722928244399,-289.81,0.000402,31]
[334301728,1722928244409,-149.997359,0.0004022,2]
[334301729,1722928244420,-149.997359,0.0004022,2]
[334301730,1722928244430,-174.716494,0.0004022,2]
[334301731,1722928244440,-3000.0,0.00040265,42]
[334301733,1722928244449,-153.0,0.00040274,2]
[334301734,1722928244459,-3000.0,0.00040368,42]
[334301736,1722928244469,-236.99,0.000404,30]
[334301737,1722928244478,-151.0,0.00040411,120]
[334301738,1722928244488,-151.0,0.00040451,15]
[334301739,1722928244497,-151.0,0.00040451,15]
[334301740,1722928244508,-3000.0,0.00040471,42]
[334301741,1722928244517,-972.92884583,0.00040547,120]
[334301742,1722928244527,-316.3986624,0.00040548,2]
[334301743,1722928244536,-294.3442761,0.00040548,2]
[334301744,1722928244546,-270.8763614,0.00040548,2]
[334301745,1722928244557,-504.3404118,0.00040548,2]
[334301746,1722928244566,-153.0,0.00040548,2]
[334301747,1722928244576,-294.3442761,0.00040548,2]
[334301748,1722928244586,-294.3442761,0.00040548,2]
[334301749,1722928244595,-294.3442761,0.00040548,2]
[334301750,1722928244605,-294.3442761,0.00040548,2]
[334301751,1722928244614,-294.3442761,0.00040548,2]
[334301752,1722928244624,-293.0943328,0.00040548,2]
[334301753,1722928244634,-3000.0,0.00040574,42]
[334301754,1722928244643,-3200.0,0.0004062,14]
[334301755,1722928244652,-150.219,0.0004062,30]
[334301756,1722928244662,-151.0,0.00040676,14]
[334301757,1722928244671,-421.523645,0.00040676,14]
[334301758,1722928244680,-421.523645,0.00040676,14]
[334301759,1722928244689,-151.0,0.00040676,14]
[334301760,1722928244698,-871.099873,0.00040676,14]
[334301761,1722928244708,-871.099873,0.00040676,14]
[334301762,1722928244718,-3000.0,0.00040676,42]
[334301763,1722928244727,-151.0,0.00040719,14]
[334301764,1722928244736,-463.97631,0.00040719,14]
[334301765,1722928244746,-463.97631,0.00040719,14]
[334301766,1722928244756,-151.0,0.00040719,14]
[334301767,1722928244766,-151.0,0.00040719,14]
[334301768,1722928244776,-3000.0,0.00040779,42]
[334301769,1722928244785,-333.71611111,0.000408,30]
[334301770,1722928244795,-3000.0,0.00040882,42]
[334301771,1722928244804,-2500.0,0.000409,120]
[334301772,1722928244814,-183.676784,0.00040904,2]
[334301773,1722928244822,-187.374539,0.00040904,2]
[334301774,1722928244832,-719.806468,0.00040985,14]
[334301775,1722928244841,-719.806468,0.00040985,14]
[334301776,1722928244850,-3000.0,0.00040985,42]
[334301777,1722928244859,-1160.76436654,0.00040995,4]
[334301778,1722928244869,-2000.0,0.00040995,4]
[334301779,1722928244878,-5000.0,0.00041,41]
[334301780,1722928244887,-10053.48986323,0.00041,30]
[334301781,1722928244897,-9446.41,0.00041,120]
[334301782,1722928244907,-2000.0,0.0004103,4]
[334301783,1722928244916,-152.0,0.00041041,31]
[334301784,1722928244926,-152.0,0.00041041,31]
[334301785,1722928244935,-157.0,0.0004106,120]
[334301786,1722928244945,-151.81,0.0004106,120]
[334301787,1722928244955,-157.0,0.0004107,120]
[334301788,1722928244964,-150.5,0.0004107,120]
[334301789,1722928244973,-2000.0,0.00041072,4]
[334301790,1722928244982,-150.0,0.00041073,5]
[334301791,1722928244992,-296.0,0.0004108,45]
[334301792,1722928245002,-150.5,0.0004108,120]
[334301793,1722928245014,-157.0,0.0004108,120]
[334301794,1722928245028,-2000.0,0.00041085,4]
[334301795,1722928245038,-151.0,0.00041088,14]
[334301796,1722928245047,-151.0,0.00041088,14]
[334301797,1722928245056,-179.73194,0.00041088,14]
[334301798,1722928245066,-179.73194,0.00041088,14]
[334301799,1722928245075,-151.0,0.00041088,14]
[334301800,1722928245085,-2295.321643,0.00041088,14]
[334301801,1722928245095,-2295.321643,0.00041088,14]
[334301802,1722928245104,-583.57499,0.00041088,14]
[334301803,1722928245114,-583.57499,0.00041088,14]
[334301804,1722928245123,-3000.0,0.00041088,42]
[334301805,1722928245133,-1203.18494595,0.00041093,120]
[334301806,1722928245142,-160.0,0.00041094,30]
[334301807,1722928245151,-160.50030422,0.00041094,30]
[334301808,1722928245160,-5000.0,0.00041094,31]
[334301809,1722928245169,-5000.0,0.00041094,31]
[334301810,1722928245178,-5000.0,0.00041094,31]
[334301811,1722928245188,-450.68548168,0.00041094,31]
[334301812,1722928245198,-151.0,0.00041094,14]
[334301813,1722928245207,-1193.876891,0.00041094,14]
[334301814,1722928245216,-1193.876891,0.00041094,14]
[334301815,1722928245226,-151.0,0.00041094,14]
[334301816,1722928245235,-776.114235,0.00041094,14]
[334301817,1722928245244,-151.0,0.00041094,14]
[334301818,1722928245256,-776.114235,0.00041094,14]
[334301819,1722928245265,-165.179392,0.00041094,14]
[334301820,1722928245274,-3904.46836991,0.00041095,21]
[334301821,1722928245284,-500.0,0.00041095,31]
[334301822,1722928245293,-500.0,0.00041095,31]
[334301823,1722928245304,-500.44866568,0.00041095,31]
[334301824,1722928245313,-500.0,0.00041095,31]
[334301825,1722928245324,-599.90931733,0.00041095,31]
[334301826,1722928245333,-500.0,0.00041095,31]
[334301827,1722928245343,-500.0,0.00041095,31]
[334301828,1722928245354,-500.0,0.00041095,31]
[334301829,1722928245364,-500.0,0.00041095,31]
[334301830,1722928245374,-500.0,0.00041095,31]
[334301831,1722928245384,-512.58,0.00041095,31]
[334301832,1722928245393,-500.0,0.00041095,31]
[334301833,1722928245405,-500.0,0.00041095,31]
[334301834,1722928245415,-500.0,0.00041095,31]
[334301835,1722928245426,-500.0,0.00041095,31]
[334301836,1722928245436,-500.0,0.00041095,31]
[334301837,1722928245446,-500.0,0.00041095,31]
[334301838,1722928245456,-500.0,0.00041095,31]
[334301839,1722928245466,-500.0,0.00041095,31]
[334301840,1722928245475,-501.13268625,0.00041095,31]
[334301841,1722928245485,-500.0,0.00041095,31]
[334301842,1722928245495,-643.77216218,0.00041095,31]
[334301843,1722928245504,-500.0,0.00041095,31]
[334301844,1722928245518,-500.0,0.00041095,31]
[334301845,1722928245532,-500.0,0.00041095,31]
[334301846,1722928245541,-500.0,0.00041095,31]
[334301847,1722928245550,-503.19222684,0.00041095,31]
[334301848,1722928245560,-1613.36,0.00041095,31]
[334301849,1722928245569,-177.33813632,0.00041095,31]
[334301850,1722928245577,-500.0,0.00041095,31]
[334301851,1722928245587,-500.0,0.00041095,31]
[334301852,1722928245596,-500.0,0.00041095,31]
[334301853,1722928245604,-500.0,0.00041095,31]
[334301854,1722928245613,-500.0,0.00041095,31]
[334301855,1722928245623,-417.0860992,0.00041095,31]
[334301856,1722928245632,-500.0,0.00041095,31]
[334301857,1722928245642,-500.23485866,0.00041095,31]
[334301858,1722928245652,-500.0,0.00041095,31]
[334301859,1722928245661,-500.0,0.00041095,31]
[334301860,1722928245670,-500.0,0.00041095,31]
[334301861,1722928245679,-500.0,0.00041095,31]
[334301862,1722928245688,-500.0,0.00041095,31]
[334301863,1722928245698,-500.0,0.00041095,31]
[334301864,1722928245707,-554.51,0.00041095,31]
[334301865,1722928245717,-500.0,0.00041095,31]
[334301866,1722928245726,-500.0,0.00041095,31]
[334301867,1722928245735,-3524.3,0.00041095,31]
[334301868,1722928245745,-500.0,0.00041095,31]
[334301869,1722928245754,-500.0,0.00041095,31]
[334301870,1722928245765,-500.0,0.00041095,31]
[334301871,1722928245774,-500.0,0.00041095,31]
[334301872,1722928245784,-500.0,0.00041095,31]
[334301873,1722928245793,-500.0,0.00041095,31]
[334301874,1722928245802,-500.0,0.00041095,31]
[334301875,1722928245812,-500.0,0.00041095,31]
[334301876,1722928245821,-500.0,0.00041095,31]
[334301877,1722928245831,-501.90243565,0.00041095,31]
[334301878,1722928245842,-500.0,0.00041095,31]
[334301879,1722928245851,-500.0,0.00041095,31]
[334301880,1722928245861,-500.0,0.00041095,31]
[334301881,1722928245871,-500.0,0.00041095,10]
[334301882,1722928245880,-500.0,0.00041095,31]
[334301883,1722928245890,-500.0,0.00041095,31]
[334301884,1722928245899,-500.0,0.00041095,31]
[334301885,1722928245908,-500.0,0.00041095,31]
[334301886,1722928245917,-542.15017006,0.00041095,31]
[334301887,1722928245926,-500.0,0.00041095,31]
[334301888,1722928245935,-501.17866054,0.00041095,31]
[334301889,1722928245945,-524.32549575,0.00041095,31]
[334301890,1722928245955,-500.0,0.00041095,20]
[334301891,1722928245964,-500.0,0.00041095,31]
[334301892,1722928245973,-500.0,0.00041095,31]
[334301893,1722928245982,-500.0,0.00041095,31]
[334301894,1722928245992,-500.0,0.00041095,31]
[334301895,1722928246002,-510.92449234,0.00041095,31]
[334301896,1722928246013,-500.0,0.00041095,31]
[334301897,1722928246027,-500.0,0.00041095,31]
[334301898,1722928246035,-500.0,0.00041095,31]
[334301899,1722928246044,-504.93505975,0.00041095,31]
[334301900,1722928246054,-500.0,0.00041095,31]
[334301901,1722928246064,-559.01801926,0.00041095,31]
[334301902,1722928246073,-514.91455876,0.00041095,31]
[334301903,1722928246083,-500.0,0.00041095,31]
[334301904,1722928246096,-500.0,0.00041095,31]
[334301905,1722928246106,-500.0,0.00041095,31]
[334301906,1722928246117,-500.0,0.00041095,31]
[334301907,1722928246129,-500.0,0.00041095,31]
[334301908,1722928246138,-500.0,0.00041095,31]
[334301909,1722928246148,-500.0,0.00041095,31]
[334301910,1722928246158,-500.0,0.00041095,31]
[334301911,1722928246167,-500.0,0.00041095,31]
[334301912,1722928246176,-500.0,0.00041095,31]
[334301913,1722928246186,-500.0,0.00041095,31]
[334301914,1722928246195,-500.0,0.00041095,31]
[334301915,1722928246205,-500.0,0.00041095,31]
[334301916,1722928246214,-500.0,0.00041095,31]
[334301917,1722928246224,-500.0,0.00041095,31]
[334301918,1722928246234,-500.0,0.00041095,31]
[334301919,1722928246243,-500.0,0.00041095,31]
[334301921,1722928246252,-500.0,0.00041095,31]
[334301923,1722928246262,-416.08032361,0.00041095,31]
[334301924,1722928246272,-500.0,0.00041095,31]
[334301925,1722928246281,-500.0,0.00041095,31]
[334301926,1722928246290,-500.0,0.00041095,31]
[334301927,1722928246299,-500.0,0.00041095,31]
[334301928,1722928246308,-597.20773309,0.00041095,31]
[334301930,1722928246317,-500.0,0.00041095,31]
[334301931,1722928246326,-511.22624464,0.00041095,31]
[334301932,1722928246335,-500.0,0.00041095,31]
[334301933,1722928246344,-500.0,0.00041095,31]
[334301934,1722928246354,-500.0,0.00041095,31]
[334301935,1722928246363,-500.0,0.00041095,31]
[334301936,1722928246372,-500.0,0.00041095,31]
[334301937,1722928246382,-500.0,0.00041095,31]
[334301938,1722928246391,-500.0,0.00041095,31]
[334301939,1722928246400,-500.0,0.00041095,31]
[334301940,1722928246410,-500.0,0.00041095,31]
[334301941,1722928246419,-500.0,0.00041095,31]
[334301942,1722928246428,-504.87801131,0.00041095,31]
[334301943,1722928246439,-500.0,0.00041095,31]
[334301944,1722928246448,-350.69818167,0.00041095,31]
[334301945,1722928246458,-500.0,0.00041095,31]
[334301946,1722928246467,-500.0,0.00041095,31]
[334301947,1722928246476,-500.0,0.00041095,31]
[334301948,1722928246486,-500.0,0.00041095,31]
[334301949,1722928246495,-500.0,0.00041095,31]
[334301950,1722928246504,-500.0,0.00041095,31]
[334301952,1722928246516,-500.0,0.00041095,31]
[334301953,1722928246526,-500.0,0.00041095,31]
[334301954,1722928246535,-500.0,0.00041095,31]
[334301955,1722928246544,-495.31326412,0.00041095,31]
[334301956,1722928246554,-500.0,0.00041095,31]
[334301957,1722928246566,-500.0,0.00041095,31]
[334301958,1722928246576,-500.0,0.00041095,31]
[334301959,1722928246585,-500.0,0.00041095,31]
[334301960,1722928246595,-500.0,0.00041095,31]
[334301961,1722928246604,-518.19,0.00041095,31]
[334301962,1722928246614,-500.0,0.00041095,31]
[334301963,1722928246623,-357.04640705,0.00041095,31]
[334301964,1722928246632,-500.0,0.00041095,2]
[334301966,1722928246642,-500.0,0.00041095,2]
[334301967,1722928246651,-503.16,0.00041095,31]
[334301968,1722928246660,-500.0,0.00041095,31]
[334301969,1722928246670,-500.0,0.00041095,31]
[334301970,1722928246679,-578.37,0.00041095,31]
[334301971,1722928246689,-1426.15,0.00041095,31]
[334301972,1722928246698,-500.0,0.00041095,31]
[334301973,1722928246708,-500.0,0.00041095,31]
[334301974,1722928246718,-500.0,0.00041095,31]
[334301975,1722928246727,-500.0,0.00041095,31]
[334301976,1722928246737,-500.0,0.00041095,31]
[334301977,1722928246746,-500.0,0.00041095,31]
[334301978,1722928246755,-500.0,0.00041095,31]
[334301979,1722928246766,-500.0,0.00041095,31]
[334301980,1722928246776,-500.0,0.00041095,31]
[334301981,1722928246924,-500.0,0.00041095,31]
[334301982,1722928246934,-500.0,0.00041095,31]
[334301983,1722928246944,-500.0,0.00041095,31]
[334301984,1722928246954,-500.0,0.00041095,31]
[334301985,1722928246963,-500.0,0.00041095,31]
[334301986,1722928246973,-500.0,0.00041095,31]
[334301987,1722928246982,-500.0,0.00041095,31]
[334301988,1722928246991,-500.0,0.00041095,31]
[334301989,1722928247000,-387.60793808,0.00041095,31]
[334301990,1722928247012,-500.0,0.00041095,31]
[334301991,1722928247025,-500.0,0.00041095,31]
[334301992,1722928247038,-500.0,0.00041095,31]
[334301993,1722928247050,-500.0,0.00041095,31]
[334301994,1722928247062,-953.59,0.00041095,31]
[334301995,1722928247072,-500.0,0.00041095,31]
[334301996,1722928247082,-500.0,0.00041095,31]
[334301997,1722928247091,-500.0,0.00041095,31]
[334301998,1722928247102,-500.0,0.00041095,31]
[334301999,1722928247111,-508.80427827,0.00041095,31]
[334302000,1722928247121,-500.0,0.00041095,31]
[334302001,1722928247130,-500.0,0.00041095,31]
[334302002,1722928247140,-500.0,0.00041095,31]
[334302003,1722928247149,-504.90918618,0.00041095,31]
[334302004,1722928247158,-179.13555534,0.00041095,31]
[334302005,1722928247168,-500.0,0.00041095,31]
[334302006,1722928247178,-500.0,0.00041095,31]
[334302007,1722928247189,-2588.98,0.00041095,31]
[334302008,1722928247200,-512.58577606,0.00041095,31]
[334302009,1722928247211,-500.0,0.00041095,31]
[334302010,1722928247223,-509.57823955,0.00041095,3]
[334302011,1722928247235,-500.0,0.00041095,31]
[334302012,1722928247245,-750.75,0.00041095,31]
[334302013,1722928247255,-733.44,0.00041095,31]
[334302014,1722928247265,-1144.55,0.00041095,31]
[334302015,1722928247275,-536.27996975,0.00041095,31]
[334302016,1722928247285,-1329.91,0.00041095,31]
[334302017,1722928247297,-500.0,0.00041095,31]
[334302018,1722928247308,-500.0,0.00041095,31]
[334302019,1722928247319,-500.0,0.00041095,31]
[334302020,1722928247331,-500.0,0.00041095,30]
[334302021,1722928247340,-1093.75,0.00041095,31]
[334302022,1722928247351,-500.0,0.00041095,31]
[334302023,1722928247360,-500.0,0.00041095,31]
[334302024,1722928247370,-500.0,0.00041095,31]
[334302025,1722928247380,-500.0,0.00041095,31]
[334302026,1722928247390,-500.0,0.00041095,31]
[334302027,1722928247400,-500.0,0.00041095,31]
[334302028,1722928247411,-3213.8,0.00041095,31]
[334302029,1722928247423,-500.0,0.00041095,31]
[334302030,1722928247435,-500.0,0.00041095,31]
[334302031,1722928247446,-516.68982005,0.00041095,31]
[334302032,1722928247456,-500.0,0.00041095,31]
[334302033,1722928247465,-500.0,0.00041095,31]
[334302034,1722928247475,-500.0,0.00041095,31]
[334302035,1722928247484,-506.54,0.00041095,31]
[334302036,1722928247494,-947.59,0.00041095,31]
[334302037,1722928247504,-500.0,0.00041095,31]
[334302038,1722928247515,-500.0,0.00041095,31]
[334302039,1722928247524,-500.0,0.00041095,31]
[334302040,1722928247535,-500.0,0.00041095,31]
[334302041,1722928247547,-500.0,0.00041095,31]
[334302042,1722928247559,-861.87,0.00041095,31]
[334302043,1722928247568,-500.0,0.00041095,31]
[334302044,1722928247578,-1053.66,0.00041095,31]
[334302045,1722928247589,-714.59,0.00041095,31]
[334302046,1722928247599,-501.92234562,0.00041095,31]
[334302047,1722928247609,-500.0,0.00041095,31]
[334302048,1722928247620,-500.0,0.00041095,31]
[334302049,1722928247631,-500.0,0.00041095,31]
[334302050,1722928247642,-500.0,0.00041095,31]
[334302051,1722928247653,-500.0,0.00041095,31]
[334302052,1722928247663,-2076.75,0.00041095,31]
[334302053,1722928247672,-500.0,0.00041095,31]
[334302054,1722928247682,-500.0,0.00041095,31]
[334302055,1722928247692,-500.0,0.00041095,2]
[334302056,1722928247702,-500.0,0.00041095,31]
[334302057,1722928247712,-500.0,0.00041095,31]
[334302058,1722928247723,-500.0,0.00041095,31]
[334302059,1722928247734,-500.0,0.00041095,31]
[334302060,1722928247745,-500.0,0.00041095,31]
[334302061,1722928247755,-500.0,0.00041095,31]
[334302062,1722928247766,-500.0,0.00041095,31]
[334302063,1722928247775,-500.0,0.00041095,31]
[334302064,1722928247785,-500.0,0.00041095,31]
[334302065,1722928247797,-500.0,0.00041095,31]
[334302066,1722928247806,-580.82,0.00041095,31]
[334302067,1722928247815,-500.0,0.00041095,31]
[334302068,1722928247825,-500.0,0.00041095,31]
[334302069,1722928247835,-555.46,0.00041095,31]
[334302070,1722928247845,-555.46,0.00041095,31]
[334302071,1722928247856,-555.46,0.00041095,31]
[334302072,1722928247866,-555.46,0.00041095,31]
[334302073,1722928247875,-555.46,0.00041095,31]
[334302074,1722928247887,-555.46,0.00041095,31]
[334302075,1722928247896,-555.46,0.00041095,31]
[334302076,1722928247905,-404.62002121,0.00041095,31]
[334302077,1722928247917,-555.46,0.00041095,31]
[334302078,1722928247928,-555.46,0.00041095,31]
[334302079,1722928247940,-500.0,0.00041095,31]
[334302080,1722928247953,-500.0,0.00041095,31]
[334302081,1722928247963,-686.35,0.00041095,31]
[334302082,1722928247972,-500.0,0.00041095,31]
[334302083,1722928247982,-500.0,0.00041095,31]
[334302084,1722928247993,-500.0,0.00041095,31]
[334302085,1722928248003,-500.0,0.00041095,31]
[334302086,1722928248015,-1203.96,0.00041095,31]
[334302087,1722928248027,-555.46,0.00041095,31]
[334302088,1722928248036,-500.0,0.00041095,31]
[334302089,1722928248045,-555.46,0.00041095,31]
[334302090,1722928248056,-500.0,0.00041095,31]
[334302091,1722928248066,-500.0,0.00041095,31]
[334302092,1722928248075,-500.0,0.00041095,31]
[334302093,1722928248084,-555.46,0.00041095,31]
[334302094,1722928248094,-555.46,0.00041095,31]
[334302095,1722928248108,-555.46,0.00041095,31]
[334302096,1722928248118,-555.46,0.00041095,31]
[334302097,1722928248127,-555.46,0.00041095,31]
[334302098,1722928248136,-555.46,0.00041095,31]
[334302099,1722928248145,-500.0,0.00041095,31]
[334302100,1722928248155,-555.46,0.00041095,31]
[334302101,1722928248165,-555.46,0.00041095,31]
[334302102,1722928248175,-555.46,0.00041095,31]
[334302103,1722928248185,-555.46,0.00041095,31]
[334302104,1722928248194,-555.46,0.00041095,31]
[334302105,1722928248204,-503.62779449,0.00041095,31]
[334302106,1722928248213,-555.46,0.00041095,31]
[334302107,1722928248223,-555.57617308,0.00041095,31]
[334302108,1722928248232,-634.81,0.00041095,31]
[334302109,1722928248241,-500.0,0.00041095,31]
[334302110,1722928248251,-500.0,0.00041095,31]
[334302111,1722928248261,-500.0,0.00041095,31]